bitfinex-derivatives/quotes_ETHF0:USTF0_20250404
["timestamp","ask_amount","ask_price","bid_price","bid_amount"]
[1743778111284,0.00843052,1780.3,1780.2,1.12389]
[1743778111592,0.00843052,1780.3,1780.2,3.92989]
[1743778112285,0.00843052,1780.3,1780.2,44.72989]
[1743778112686,0.00843052,1780.3,1780.2,47.22989]
[1743778112886,5.2e-07,1780.3,1780.2,52.91499]
[1743778113097,8.6368,1780.9,1780.4,2.80934]
[1743778113286,3.9323,1780.9,1780.8,3.2078]
[1743778113490,3.9323,1780.9,1780.7,1.12355]
[1743778113491,1.12357,1780.8,1780.7,1.12355]
[1743778113694,3.93227,1780.9,1780.8,1.12351]
[1743778113891,3.93227,1780.9,1780.8,3.2078]
[1743778114096,17.50387977,1781.1,1781.0,1.12339]
[1743778114289,13.57160978,1781.1,1781.0,4.33119]
[1743778114596,13.57160978,1781.1,1781.0,47.63119]
[1743778114793,13.57160978,1781.1,1781.0,47.98339]
[1743778115001,0.00546172,1781.2,1781.1,1.12332]
[1743778115203,0.00546172,1781.2,1781.1,5.75132]
[1743778115393,0.00546172,1781.2,1781.1,8.25132]
[1743778115593,1.72e-06,1781.2,1781.1,8.25132]
[1743778115790,18.33537674,1781.7,1781.6,1.12301]
[1743778115992,9.80411983,1781.7,1781.6,8.95881]
[1743778116190,9.80411983,1781.7,1781.6,11.45881]
[1743778116398,21.85777772,1781.8,1781.7,1.12295]
[1743778116690,21.85777772,1781.8,1781.7,4.03475]
[1743778116899,21.85777772,1781.8,1781.7,6.53475]
[1743778117204,21.85777772,1781.8,1781.7,47.33475]
[1743778117497,20.65115772,1781.8,1781.7,47.74748922]
[1743778117704,8.8074,1782.5,1781.9,2.80701]
[1743778118003,2.801,1782.4,1782.3,4.33032]
[1743778118500,5.828,1783.1,1782.4,2.80627]
[1743778118704,2.801,1782.8,1782.7,4.33012]
[1743778119398,2.801,1782.8,1782.7,1.12232]
[1743778119801,2.801,1782.8,1782.7,4.33012]
[1743778121207,2.801,1782.8,1782.7,7.30622]
[1743778121500,5.7739,1783.2,1782.7,6.1839]
[1743778121700,1.12238,1782.6,1782.5,3.2078]
[1743778122303,3.62238,1782.6,1782.5,3.2078]
[1743778122906,2.8615,1782.8,1782.5,3.2078]
[1743778123209,2.8615,1782.8,1782.5,44.0078]
[1743778123405,3.9838,1782.8,1782.5,44.0078]
[1743778123706,1.12238,1782.6,1782.5,3.2078]
[1743778124008,9.9845,1782.8,1782.3,1.12252]
[1743778124303,9.9845,1782.8,1782.1,3.2078]
[1743778124304,16.5203,1782.8,1782.2,1.12257]
[1743778124508,1.12252,1782.4,1782.2,1.12259]
[1743778124703,13.6588,1782.8,1782.2,3.2078]
[1743778124908,2.8615,1782.7,1782.4,4.33027]
[1743778125209,2.8615,1782.7,1782.4,3.2078]
[1743778125507,1.12239,1782.6,1782.4,4.33028]
[1743778125709,2.9126,1782.5,1782.4,4.3303]
[1743778125907,2.9126,1782.5,1782.4,3.2078]
[1743778126110,6.53504,1782.5,1782.4,3.2078]
[1743778126405,11.42655,1782.5,1782.0,40.80843052]
[1743778126608,5.7084,1782.4,1782.0,40.80843052]
[1743778126806,4.03521,1782.3,1782.1,1.12269]
[1743778127002,2.9126,1782.3,1782.2,1.12263]
[1743778127306,1.12263,1782.2,1782.1,3.2078]
[1743778127809,1.12269,1782.1,1782.0,40.80843052]
[1743778128009,4.03529,1782.1,1782.0,40.80843052]
[1743778128204,2.9126,1782.1,1782.0,41.93119052]
[1743778128507,6.53529,1782.1,1782.0,40.80843052]
[1743778129213,11.42729,1782.1,1781.4,4.33089]
[1743778129508,1.12313,1781.4,1781.3,4.622]
[1743778129706,1.12313,1781.4,1781.3,3.2078]
[1743778129907,2.5,1781.4,1780.8,2.9113]
[1743778130105,5.69094,1781.3,1780.7,3.2078]
[1743778130308,1.12339,1781.0,1780.9,40.8]
[1743778130810,6.83119,1781.0,1780.9,40.8]
[1743778131312,5.7732,1781.0,1780.9,41.92345]
[1743778131610,3.21623052,1781.2,1780.9,41.92342]
[1743778131611,0.00843052,1781.2,1780.9,41.92342]
[1743778131907,0.00843052,1781.2,1781.0,1.12335]
[1743778132213,1.13171052,1781.2,1781.0,4.04065]
[1743778132413,0.00843052,1781.2,1781.1,1.12332]
[1743778132614,0.00843052,1781.2,1781.0,4.04065]
[1743778132912,0.00843052,1781.2,1781.1,1.12332]
[1743778132913,2.95023052,1781.2,1781.1,1.12332]
[1743778133217,0.00843052,1781.2,1781.1,4.33112]
[1743778133713,0.41504207,1782.5,1781.1,23.44843235]
[1743778133903,0.41504207,1782.5,1782.4,1.1225]
[1743778134103,5.6698,1782.9,1782.6,1.12232]
[1743778134308,5.6698,1782.9,1782.6,4.33012]
[1743778134615,11.3776,1782.9,1782.4,40.8]
[1743778134917,1.12232,1782.7,1782.6,0.00843052]
[1743778135211,7.4929,1782.8,1782.6,0.00843052]
[1743778135410,3.99322,1782.7,1782.6,0.00843052]
[1743778135909,6.49322,1782.7,1782.6,0.00843052]
[1743778136110,2.8709,1782.7,1782.6,0.00843052]
[1743778137011,2.8709,1782.7,1782.6,1.13081052]
[1743778137407,2.8709,1782.7,1782.6,0.00843052]
[1743778137611,2.8709,1782.7,1782.6,1.13081052]
[1743778137914,1.68367,1783.1,1782.9,1.12217]
[1743778138111,2.679,1783.0,1782.8,1.12223]
[1743778138311,3.80115,1783.0,1782.7,2.6957]
[1743778138512,1.12219,1782.9,1782.6,0.00843052]
[1743778138715,3.80126,1782.8,1782.6,0.00843052]
[1743778138912,2.679,1782.8,1782.6,0.00843052]
[1743778139112,2.679,1782.8,1782.7,1.12232]
[1743778139315,2.679,1782.8,1782.7,3.81802]
[1743778139517,1.1221,1783.1,1782.7,2.6957]
[1743778139812,2.679,1783.0,1782.7,2.6957]
[1743778140006,1.12225,1782.8,1782.7,2.6957]
[1743778140223,1.12224,1782.9,1782.7,1.12231]
[1743778140413,3.94695,1782.8,1782.6,1.13078052]
[1743778140710,2.8247,1782.8,1782.7,1.12232]
[1743778141312,0.5616,1783.3,1782.7,6.01354]
[1743778141618,2.8247,1783.1,1782.7,5.9432]
[1743778141812,1.12213,1783.0,1782.7,5.9432]
[1743778142009,2.8247,1782.9,1782.8,1.12225]
[1743778142722,1.12195,1783.3,1783.1,1.12204]
[1743778142913,2.8247,1783.3,1783.1,3.2078]
[1743778143216,1.122,1783.2,1783.1,3.2078]
[1743778143423,1.12221,1782.9,1782.7,8.94906]
[1743778143717,2.7535,1783.1,1782.7,13.45696]
[1743778143920,2.7535,1783.1,1782.9,4.32996]
[1743778144116,1.12213,1783.0,1782.7,10.6512]
[1743778144315,2.7535,1782.9,1782.6,0.00843052]
[1743778144519,1.12232,1782.7,1782.6,0.00843052]
[1743778145213,3.87582,1782.7,1782.6,0.00843052]
[1743778145525,2.80626,1782.5,1782.0,3.88431]
[1743778145710,2.7535,1782.4,1782.0,2.8244]
[1743778146015,1.12264,1782.2,1782.1,40.8]
[1743778146419,3.62264,1782.2,1782.1,40.8]
[1743778146622,1.12293,1781.8,1781.6,1.12296]
[1743778146811,1.12295,1781.7,1781.6,2.9305]
[1743778147121,1.12295,1781.7,1781.6,40.8]
[1743778147315,3.62295,1781.7,1781.6,40.8]
[1743778147515,6.53975,1781.7,1781.6,40.8]
[1743778148323,6.53975,1781.7,1781.5,0.00843052]
[1743778148324,1.12301,1781.6,1781.5,0.00843052]
[1743778148525,7.24761,1781.6,1781.5,0.00843052]
[1743778148829,9.74761,1781.6,1781.5,5.2e-07]
[1743778149145,15.57561,1781.6,1781.5,5.2e-07]
[1743778152020,20.19461,1781.6,1781.5,5.2e-07]
[1743778155230,3.2078,1781.4,1779.8,3.2078]
[1743778155422,4.33175,1780.1,1780.0,2.9154]
[1743778155624,4.33175,1780.1,1779.8,3.2078]
[1743778155625,1.12404,1780.0,1779.8,3.2078]
[1743778155817,3.2078,1780.1,1779.5,43.7741]
[1743778155818,1.12412,1779.9,1779.5,43.7741]
[1743778156017,1.12421,1779.7,1779.6,2.9435]
[1743778156727,2.94393052,1779.8,1779.6,2.9435]
[1743778157031,1.12427,1779.6,1779.5,40.80843052]
[1743778157222,0.00843052,1779.8,1779.5,40.80843052]
[1743778157526,0.00843052,1779.8,1779.7,4.33201]
[1743778158121,0.00843052,1779.8,1779.7,7.27551]
[1743778158427,0.00843052,1779.8,1779.7,6.1513]
[1743778158725,0.00843052,1779.8,1779.7,2.9435]
[1743778158924,0.00843052,1779.8,1779.7,9.77551]
[1743778159226,3.2078,1781.0,1780.3,1.12379]
[1743778159429,1.12367,1780.6,1780.4,2.8097]
[1743778159723,3.2078,1781.0,1780.4,6.0175]
[1743778160027,4.62,1781.2,1780.6,44.0078]
[1743778160226,9.5982,1781.3,1780.7,2.8097]
[1743778160227,0.00843052,1780.9,1780.7,2.8097]
[1743778160433,1.12351,1780.8,1780.7,2.8097]
[1743778160926,0.00843052,1780.9,1780.7,2.8097]
[1743778161125,1.12351,1780.8,1780.7,2.8097]
[1743778161324,1.12358,1780.7,1780.6,40.8]
[1743778161729,1.12358,1780.7,1780.6,43.6229]
[1743778162023,1.12354,1780.8,1780.6,44.74653]
[1743778162228,0.00843052,1780.9,1780.8,1.12351]
[1743778162724,0.00843052,1780.9,1780.8,3.88501]
[1743778163124,0.00843052,1780.9,1780.8,6.38501]
[1743778163527,0.00843052,1780.9,1780.8,3.88501]
[1743778163926,1.13188052,1780.9,1780.8,3.88501]
[1743778164128,0.00843052,1780.9,1780.8,3.88501]
[1743778164729,1.13188052,1780.9,1780.8,2.7615]
[1743778164929,1.12351,1780.8,1780.7,6.0307]
[1743778165130,0.00843052,1780.9,1780.7,7.15426]
[1743778165319,1.12351,1780.8,1780.7,6.0307]
[1743778165524,0.00843052,1780.9,1780.7,6.0307]
[1743778165720,1.12351,1780.8,1780.7,6.0307]
[1743778166134,0.00843052,1780.9,1780.7,7.15422]
[1743778166339,1.13189052,1780.9,1780.8,1.12351]
[1743778166663,0.00843052,1780.9,1780.8,1.12351]
[1743778166855,0.00843052,1780.9,1780.7,7.15423]
[1743778166856,1.12351,1780.8,1780.7,7.15423]
[1743778167159,0.00843052,1780.9,1780.8,1.12351]
[1743778167351,1.12351,1780.8,1780.7,6.0307]
[1743778167936,0.00843052,1780.9,1780.7,6.0307]
[1743778168142,0.00843052,1780.9,1780.7,7.15424]
[1743778168344,1.13191052,1780.9,1780.7,7.15424]
[1743778168543,1.12358,1780.7,1780.6,40.8]
[1743778168750,1.12364,1780.6,1780.5,0.00843052]
[1743778169139,3.62364,1780.6,1780.5,0.00843052]
[1743778169543,6.49084,1780.6,1780.5,0.00843052]
[1743778170632,6.49084,1780.6,1780.5,5.2e-07]
[1743778172030,8.61084,1780.6,1780.5,5.2e-07]
[1743778172934,11.11084,1780.6,1780.5,5.2e-07]
[1743778173733,17.50124,1780.6,1780.5,5.2e-07]
[1743778174134,17.95610604,1780.6,1780.5,5.2e-07]
[1743778174932,2.80987,1780.2,1779.6,3.2078]
[1743778175134,1.12421,1779.7,1779.6,3.2078]
[1743778175341,1.12433,1779.5,1779.4,2.8543]
[1743778176536,4.33213,1779.5,1779.4,2.8543]
[1743778176741,4.33213,1779.5,1779.3,0.00843052]
[1743778176742,1.1244,1779.4,1779.3,0.00843052]
[1743778176943,4.1225,1779.4,1779.3,0.00843052]
[1743778177145,12.4505,1779.4,1779.3,5.2e-07]
[1743778177933,12.90682482,1779.4,1779.3,5.2e-07]
[1743778178732,12.90682482,1779.4,1778.7,2.7661]
[1743778178733,1.12478,1778.8,1778.7,2.7661]
[1743778179241,1.12478,1778.8,1778.7,43.5661]
[1743778180235,4.06858,1778.8,1778.7,43.5661]
[1743778181139,1.12478,1778.8,1778.7,43.5661]
[1743778181733,4.622,1779.1,1778.7,43.5661]
[1743778181933,1.12476,1778.9,1778.7,43.5661]
[1743778182244,5.828,1779.3,1778.7,43.5661]
[1743778182245,1.12465,1779.0,1778.7,43.5661]
[1743778182538,8.6392,1779.3,1778.8,1.12474]
[1743778182539,13.3928,1779.3,1778.8,1.12474]
[1743778182743,1.12462,1779.1,1778.9,2.7659]
[1743778182945,1.12465,1779.0,1778.9,2.7659]
[1743778183243,10.449,1779.3,1778.9,2.7659]
[1743778183543,1.12459,1779.1,1778.9,5.9737]
[1743778183943,13.2993,1779.3,1778.9,5.9737]
[1743778184135,1.12465,1779.0,1778.9,2.7659]
[1743778184336,1.12463,1779.1,1778.9,2.7659]
[1743778184532,6.95248,1779.3,1778.9,5.9737]
[1743778184747,5.828,1779.3,1778.9,7.09839]
[1743778184947,1.1246,1779.1,1778.9,2.7659]
[1743778185259,5.828,1779.3,1778.9,3.89059]
[1743778185546,1.12457,1779.2,1778.9,3.89059]
[1743778185845,1.12462,1779.1,1778.9,3.89059]
[1743778186046,2.81103,1779.4,1778.9,2.7659]
[1743778186242,2.817,1779.3,1778.9,2.7659]
[1743778186645,2.817,1779.3,1779.0,3.2078]
[1743778186846,1.12452,1779.2,1779.1,2.9462]
[1743778187043,1.12445,1779.4,1779.2,1.1245]
[1743778187233,2.817,1779.5,1779.3,6.154]
[1743778187439,3.94133,1779.5,1779.4,2.9462]
[1743778187841,1.1244,1779.4,1779.3,3.2078]
[1743778189446,1.12465,1779.0,1778.9,2.8654]
[1743778189744,1.12448,1779.3,1779.1,1.12457]
[1743778189944,1.12442,1779.4,1779.2,3.8996]
[1743778190137,1.12446,1779.3,1779.2,2.7751]
[1743778190545,1.12459,1779.1,1778.9,7.19788]
[1743778190848,1.12457,1779.2,1779.0,5.9829]
[1743778191042,1.12459,1779.1,1779.0,2.7751]
[1743778191949,3.97989,1779.1,1779.0,2.7751]
[1743778192652,1.12459,1779.1,1779.0,2.7751]
[1743778192952,1.12459,1779.1,1778.7,40.8]
[1743778192953,1.12474,1778.9,1778.7,45.1326]
[1743778193144,1.12474,1778.9,1778.8,2.9135]
[1743778193750,1.12471,1778.9,1778.8,2.9135]
[1743778195756,1.12471,1778.9,1778.8,4.03828]
[1743778195953,1.12471,1778.9,1778.8,2.9135]
[1743778196154,1.12471,1778.9,1778.8,4.03828]
[1743778196451,1.12468,1779.0,1778.8,4.03828]
[1743778196651,1.12468,1779.0,1778.9,2.8476]
[1743778196850,1.12468,1779.0,1778.9,7.18011]
[1743778197051,2.81118,1779.3,1778.9,7.18005]
[1743778197243,5.85238,1779.3,1778.9,2.8476]
[1743778197453,1.12465,1779.0,1778.9,3.97229]
[1743778197640,1.12465,1779.0,1778.9,2.8476]
[1743778198041,1.12478,1778.8,1778.7,41.92483]
[1743778198248,1.12478,1778.8,1778.7,44.75103]
[1743778198451,1.12478,1778.8,1778.7,43.6262]
[1743778200342,1.12478,1778.8,1778.7,40.8]
[1743778200951,1.12478,1778.8,1778.7,43.6262]
[1743778201249,1.12478,1778.8,1778.6,0.00843052]
[1743778201250,1.12484,1778.7,1778.6,0.00843052]
[1743778201444,8.76504,1778.7,1778.6,0.00843052]
[1743778201649,3.0202,1778.7,1778.6,0.00843052]
[1743778201848,2.81134,1779.2,1778.8,1.12474]
[1743778202047,1.1247,1779.0,1778.9,3.0559]
[1743778202349,11.84681,1779.4,1779.0,1.12465]
[1743778202552,1.12457,1779.2,1779.1,3.0559]
[1743778202750,1.12452,1779.2,1779.1,3.0559]
[1743778203055,1.12437,1779.5,1779.3,1.12445]
[1743778203250,1.12446,1779.3,1779.2,5.7722]
[1743778203549,0.00843052,1779.6,1779.5,1.12433]
[1743778203751,0.00843052,1779.6,1779.5,4.33213]
[1743778203948,4.62,1780.3,1779.5,4.33213]
[1743778203949,5.828,1780.4,1779.9,1.12406]
[1743778204149,1.12411,1779.9,1779.7,4.0288]
[1743778204353,1.12414,1779.8,1779.7,5.7433]
[1743778204950,1.12413,1779.9,1779.7,6.86748]
[1743778205152,0.00843052,1779.9,1779.8,3.2078]
[1743778205348,0.00843052,1779.9,1779.8,8.95194]
[1743778205555,0.00843052,1779.9,1779.8,11.45194]
[1743778206251,1.13251052,1779.9,1779.8,4.62]
[1743778206458,1.12414,1779.8,1779.7,2.8387]
[1743778206757,1.12421,1779.7,1779.6,0.00843052]
[1743778207353,2.8603,1779.8,1779.6,0.00843052]
[1743778207558,1.12421,1779.7,1779.6,0.00843052]
[1743778208162,4.00431,1779.7,1779.6,0.00843052]
[1743778208363,1.12446,1779.3,1779.2,2.8958]
[1743778208855,1.12446,1779.3,1779.2,6.1036]
[1743778209055,1.12446,1779.3,1779.2,2.8958]
[1743778209258,1.12446,1779.3,1779.2,3.2078]
[1743778209660,1.12446,1779.3,1779.2,6.1036]
[1743778209965,1.12442,1779.4,1779.2,7.22807]
[1743778210262,1.12442,1779.4,1779.2,7.22809]
[1743778210460,1.12428,1779.6,1779.2,6.1036]
[1743778210665,1.12433,1779.5,1779.4,3.2078]
[1743778210865,1.12433,1779.5,1779.4,3.0259]
[1743778211256,1.12452,1779.2,1779.1,0.00843052]
[1743778211562,2.8731,1779.4,1779.1,0.00843052]
[1743778211755,1.12449,1779.3,1779.2,40.8]
[1743778212355,1.12449,1779.3,1779.1,0.00843052]
[1743778212356,1.12452,1779.2,1779.1,0.00843052]
[1743778212561,1.12452,1779.2,1779.1,5.2e-07]
[1743778212762,6.49762,1779.2,1779.1,5.2e-07]
[1743778212965,12.32562,1779.2,1779.1,5.2e-07]
[1743778213163,1.12516,1778.2,1778.1,3.0427]
[1743778213370,1.12516,1778.2,1778.1,2.7974]
[1743778213567,2.9051,1778.4,1778.1,2.7974]
[1743778213867,1.12513,1778.3,1778.1,7.1304]
[1743778214165,2.9051,1778.4,1777.9,3.2078]
[1743778214166,8.92551,1778.4,1777.9,3.2078]
[1743778214464,1.12531,1778.0,1777.8,2.7974]
[1743778214664,1.12526,1778.1,1778.0,0.00843052]
[1743778215163,2.9051,1778.2,1778.0,0.00843052]
[1743778215366,1.12522,1778.1,1778.0,2.80583052]
[1743778215567,1.12522,1778.1,1778.0,0.00843052]
[1743778215968,4.03032,1778.1,1778.0,0.00843052]
[1743778216159,4.59352,1778.1,1778.0,0.00843052]
[1743778216363,6.53032,1778.1,1778.0,0.00843052]
[1743778216567,4.03032,1778.1,1778.0,0.00843052]
[1743778216760,4.03032,1778.1,1778.0,40.80843052]
[1743778217267,8.64932,1778.1,1778.0,40.80843052]
[1743778217863,14.47732,1778.1,1778.0,40.80843052]
[1743778218061,16.97732,1778.1,1778.0,5.2e-07]
[1743778220259,15.33372,1778.1,1778.0,5.2e-07]
[1743778220469,17.45272,1778.1,1778.0,5.2e-07]
[1743778220666,14.47732,1778.1,1778.0,5.2e-07]
[1743778221167,14.47732,1778.1,1778.0,40.80000052]
[1743778221560,17.68512,1778.1,1778.0,40.80000052]
[1743778221767,14.47732,1778.1,1778.0,40.80000052]
[1743778222159,4.619,1778.1,1778.0,40.80000052]
[1743778222364,5.74422,1778.1,1778.0,40.80000052]
[1743778222565,5.74422,1778.1,1778.0,43.78740052]
[1743778223171,5.74422,1778.1,1778.0,46.99520052]
[1743778224864,4.619,1778.1,1778.0,48.12048052]
[1743778225070,0.00843052,1778.4,1778.0,46.99520052]
[1743778225260,1.12509,1778.3,1778.2,3.2078]
[1743778225462,1.12522,1778.1,1778.0,46.99520052]
[1743778225663,1.1252,1778.2,1778.0,48.12044052]
[1743778225863,2.7922,1778.3,1778.0,46.99520052]
[1743778226066,1.12522,1778.1,1778.0,46.99520052]
[1743778226771,1.12522,1778.1,1778.0,43.78740052]
[1743778228471,1.12522,1778.1,1778.0,5.2e-07]
[1743778228472,5.74422,1778.1,1778.0,5.2e-07]
[1743778228873,8.24422,1778.1,1778.0,5.2e-07]
[1743778229265,11.05272,1778.1,1778.0,5.2e-07]
[1743778229869,8.55272,1778.1,1778.0,5.2e-07]
[1743778230283,1.12522,1778.1,1778.0,1.12528052]
[1743778230573,2.81693052,1778.4,1778.0,3.20780052]
[1743778230771,0.00843052,1778.4,1778.3,1.12509]
[1743778231075,0.00843052,1778.4,1778.3,41.92509]
[1743778231378,0.00843052,1778.4,1778.3,47.22409]
[1743778231567,1.13346052,1778.4,1778.3,43.599]
[1743778232264,3.99786052,1778.4,1778.3,43.599]
[1743778232468,1.13346052,1778.4,1778.3,46.8068]
[1743778232673,0.00843052,1778.4,1778.3,47.93189]
[1743778232874,0.00843052,1778.4,1778.3,50.43189]
[1743778233468,0.00843052,1778.4,1778.3,46.8068]
[1743778233670,0.00843052,1778.4,1778.3,43.599]
[1743778233880,0.00843052,1778.4,1778.3,50.43189]
[1743778234572,1.12461,1779.1,1778.6,2.81225]
[1743778234777,1.12461,1779.1,1778.9,1.12468]
[1743778234976,5.5572,1779.4,1779.0,2.9888]
[1743778235167,1.12452,1779.3,1779.1,1.12455]
[1743778235470,1.12452,1779.3,1779.0,0.00843052]
[1743778235471,0.5624,1779.3,1779.0,0.00843052]
[1743778235676,1.12459,1779.1,1779.0,2.99723052]
[1743778235872,1.12459,1779.1,1779.0,0.00843052]
[1743778236071,1.12484,1778.7,1778.6,2.9888]
[1743778236276,1.12497,1778.5,1778.4,3.2078]
[1743778236875,5.74297,1778.5,1778.4,3.2078]
[1743778237173,2.81296,1778.2,1777.7,3.2078]
[1743778237371,1.12541,1777.8,1777.7,6.2436]
[1743778237782,7.44493052,1778.1,1777.7,6.2436]
[1743778237970,1.12541,1777.8,1777.7,6.2436]
[1743778238173,1.12541,1777.8,1777.7,3.0358]
[1743778238977,1.12545,1777.8,1777.6,0.00843052]
[1743778239176,1.12547,1777.7,1777.6,3.04423052]
[1743778239482,1.12547,1777.7,1777.6,6.25203052]
[1743778239670,1.12547,1777.7,1777.6,3.04423052]
[1743778239873,1.12547,1777.7,1777.6,0.00843052]
[1743778240270,2.8195,1777.9,1777.6,6.25203052]
[1743778240475,5.74232,1778.0,1777.8,3.2078]
[1743778240680,1.12535,1777.9,1777.8,3.2078]
[1743778241079,4.13075,1777.9,1777.8,3.2078]
[1743778241274,6.63075,1777.9,1777.8,3.2078]
[1743778241479,4.13075,1777.9,1777.8,3.2078]
[1743778241777,0.00843052,1778.1,1777.9,1.1253]
[1743778241978,0.00843052,1778.1,1778.0,3.2078]
[1743778242184,1.12535,1777.9,1777.8,3.2078]
[1743778242483,1.12533,1778.0,1777.8,3.2078]
[1743778242778,3.01383052,1778.1,1777.8,3.2078]
[1743778242979,1.12535,1777.9,1777.8,3.2078]
[1743778243182,1.12535,1777.9,1777.8,4.33321]
[1743778243474,1.12535,1777.9,1777.8,3.2078]
[1743778244270,1.12547,1777.7,1777.6,5.2e-07]
[1743778244472,1.12547,1777.7,1776.8,3.2078]
[1743778244473,2.81438,1777.3,1776.8,3.2078]
[1743778244677,1.12605,1776.8,1776.5,46.9189]
[1743778244875,7.5646,1777.2,1776.7,3.2078]
[1743778245080,1.12596,1777.0,1776.8,1.12604]
[1743778245277,7.5646,1777.2,1776.9,3.2078]
[1743778245472,6.02177,1777.6,1776.9,3.2078]
[1743778245673,0.00843052,1777.2,1776.9,3.21342086]
[1743778245874,1.12592,1777.0,1776.9,0.00562086]
[1743778246771,8.95072,1777.0,1776.9,0.00562086]
[1743778247375,11.45072,1777.0,1776.9,0.00562086]
[1743778247682,1.12617,1776.6,1776.5,40.8]
[1743778247880,5.74317,1776.6,1776.5,40.8]
[1743778249077,11.45097,1776.6,1776.5,40.8]
[1743778249482,11.71417,1776.6,1776.5,40.8]
[1743778250189,1.12649,1776.1,1776.0,3.2078]
[1743778250484,2.81606,1776.2,1775.8,6.2103]
[1743778250679,1.12657,1776.0,1775.8,6.2103]
[1743778250883,1.12651,1776.1,1775.8,7.33694]
[1743778251283,1.12655,1776.0,1775.9,40.8]
[1743778251791,1.12655,1776.0,1775.9,43.3]
[1743778252684,1.12655,1776.0,1775.9,40.8]
[1743778254087,1.12655,1776.0,1775.9,43.3]
[1743778254280,1.12655,1776.0,1775.9,46.3548]
[1743778254481,1.12655,1776.0,1775.9,43.8548]
[1743778255287,1.12655,1776.0,1775.9,46.3548]
[1743778255883,2.82452052,1776.2,1775.9,46.3548]
[1743778255884,0.00843052,1776.2,1775.9,46.3548]
[1743778256089,1.12649,1776.1,1776.0,3.2078]
[1743778256281,1.12649,1776.1,1776.0,6.1169]
[1743778257284,1.13489052,1776.2,1776.0,6.1169]
[1743778257485,0.00843052,1776.2,1776.0,7.24345]
[1743778257678,0.00843052,1776.2,1776.0,8.6169]
[1743778257880,6.02297,1776.8,1776.3,1.12632]
[1743778258087,1.12621,1776.6,1776.4,2.9091]
[1743778258287,1.12623,1776.5,1776.4,2.9091]
[1743778258488,2.81531,1776.7,1776.4,2.9091]
[1743778258489,1.12622,1776.6,1776.4,2.9091]
[1743778258784,2.7892,1776.7,1776.4,2.9091]
[1743778259078,1.13457052,1776.7,1776.5,4.334]
[1743778259280,1.13457052,1776.7,1776.6,3.83607]
[1743778259281,0.00843052,1776.7,1776.6,3.83607]
[1743778259486,0.00843052,1776.7,1776.6,6.68307]
[1743778259681,0.00843052,1776.7,1776.6,9.18307]
[1743778259982,0.00843052,1776.7,1776.6,13.80307]
[1743778260180,5.47521,1777.2,1776.6,13.80307]
[1743778260181,2.6606,1777.2,1776.6,54.60302]
[1743778260483,2.6606,1777.2,1776.9,3.2078]
[1743778260684,17.36681,1777.7,1777.0,7.3299]
[1743778260885,1.12562,1777.5,1777.3,3.2078]
[1743778261182,1.12562,1777.5,1777.4,2.7099]
[1743778261479,0.00843052,1777.6,1777.5,1.1256]
[1743778261892,1.1256,1777.5,1777.4,7.8278]
[1743778262188,1.1256,1777.5,1777.4,48.6278]
[1743778262377,3.7944,1777.5,1777.4,45.42]
[1743778262578,3.7944,1777.5,1777.4,40.8]
[1743778262784,1.12573,1777.3,1777.2,0.00843052]
[1743778263485,3.79453,1777.3,1777.2,0.00843052]
[1743778263882,6.29453,1777.3,1777.2,5.2e-07]
[1743778265188,5.62928,1777.1,1776.1,5.5447]
[1743778265486,1.12636,1776.3,1775.9,3.2078]
[1743778265691,1.12628,1776.5,1776.1,3.2078]
[1743778265882,1.12617,1776.6,1776.4,1.12624]
[1743778266192,0.00843052,1776.5,1776.4,1.1263]
[1743778266390,0.00843052,1776.5,1776.3,3.2078]
[1743778266693,0.00843052,1776.5,1776.3,4.33412]
[1743778266893,5.2e-07,1776.5,1776.4,41.9263]
[1743778267095,5.2e-07,1776.5,1776.4,55.01161173]
[1743778267283,5.2e-07,1776.5,1776.4,63.47761173]
[1743778267587,3.771,1777.7,1776.5,2.81559]
[1743778267799,1.12585,1777.1,1777.0,3.2078]
[1743778268292,1.12609,1776.8,1776.7,3.2078]
[1743778268495,0.00843052,1776.9,1776.7,6.02302]
[1743778268697,2.81398,1777.6,1776.9,2.81495]
[1743778268889,2.814,1777.5,1777.1,3.2078]
[1743778269090,1.12578,1777.3,1777.2,1.12579]
[1743778269298,1.12562,1777.5,1777.2,3.2078]
[1743778269495,2.843,1777.9,1777.4,3.2078]
[1743778269691,1.12536,1777.9,1777.7,3.2078]
[1743778269993,0.00843052,1777.8,1777.7,4.33327]
[1743778270193,2.7883,1778.4,1777.7,4.33327]
[1743778270194,2.751,1778.3,1777.7,3.2078]
[1743778270397,1.12524,1778.1,1777.9,1.1253]
[1743778270591,2.843,1778.5,1778.0,48.6258]
[1743778270792,1.12516,1778.2,1778.0,48.6258]
[1743778270987,1.12512,1778.3,1778.1,1.12519]
[1743778271193,2.81233,1778.6,1778.2,3.2078]
[1743778271398,2.81215,1778.7,1778.0,48.6258]
[1743778271399,0.00843052,1778.4,1778.0,48.6258]
[1743778271605,0.00843052,1778.4,1778.1,1.1252]
[1743778271795,0.00843052,1778.4,1778.0,49.75103]
[1743778271992,0.00843052,1778.4,1778.2,3.2078]
[1743778272689,0.00843052,1778.4,1778.3,1.12509]
[1743778273092,0.00843052,1778.4,1778.3,8.24309]
[1743778273499,0.00843052,1778.4,1778.3,4.618]
[1743778273997,1.13346052,1778.4,1778.3,4.618]
[1743778274195,0.00843052,1778.4,1778.3,8.40069]
[1743778274401,3.2078,1779.5,1778.3,9.7756]
[1743778274594,8.6868,1779.6,1779.1,3.2078]
[1743778274898,8.6868,1779.6,1779.3,3.2078]
[1743778274899,2.8588,1779.6,1779.3,3.2078]
[1743778275102,2.7493,1780.0,1779.5,3.2078]
[1743778275299,1.12421,1779.7,1779.6,2.6576]